Cogmind - Beta 16 @@@ ROGUE MODE // 2025.12.18 @ 15:52:45 Player: Keen Result: Self-destructed Performance ------------- Evolutions (1) 500 Regions Visited (2) 400 Robots Destroyed (22) 110 Value Destroyed (550) 550 Prototype IDs (1) 20 Alien Tech Used (0) 0 Bonus (0) 0 TOTAL SCORE: 1580 Bonus ------- None Cogmind --------- Core Integrity 238/400 Matter 300/300 Energy 100/100 System Corruption 0% Temperature Cool (0) Movement Core (700) Ox13 Location -9/Materials Parts ------- > --- POWER (1) -------- (None) > --- PROPULSION (2) --- (None) > --- UTILITY (4) ------ High-capacity Storage Unit Structural Scanner Visual Processing Unit Core Shielding > --- WEAPON (2) ------- (None) > --- INVENTORY (20) --- Improved Heat Sink Large Battery (200) High-capacity Matter Pod (200) Peak State ------------ > --- POWER ------------ Ion Engine > --- PROPULSION ------- Hover Unit Improved Flight Unit > --- UTILITY ---------- High-capacity Storage Unit Structural Scanner Visual Processing Unit Core Shielding > --- WEAPON ----------- Field Laser Field Laser > --- INVENTORY -------- Improved Heat Sink Large Battery High-capacity Matter Pod [Rating: 16] Favorites ----------- Power Ion Engine Engine Ion Engine Power Core Light Nuclear Core Propulsion Aluminum Leg Leg Aluminum Leg Hover Unit Hover Unit Flight Unit Improved Flight Unit Utility Core Shielding Device Structural Scanner Storage High-capacity Storage Unit Processor Visual Processing Unit Protection Core Shielding Weapon Field Laser Energy Gun Field Laser Ballistic Gun Light Assault Rifle Launcher Grenade Launcher Build | -11 -10 -9 ------- Run | Yrd Mat Mat Slots Evolved 2 | . . 2 Power . | . . . Propulsion . | . . . Utility 2 | . . 2 Weapon . | . . . Parts Attached 27 | 6 12 9 Power 4 | 1 3 . Engine 3 | 1 2 . Core 1 | . 1 . Reactor . | . . . Propulsion 8 | 2 3 3 Treads . | . . . Leg 5 | 2 3 . Wheel . | . . . Hover 2 | . . 2 Flight 1 | . . 1 Utility 9 | 1 5 3 Device 3 | . 1 2 Storage 4 | 1 3 . Processor 1 | . . 1 Hackware . | . . . Protection 1 | . 1 . Artifact . | . . . Weapon 6 | 2 1 3 Energy Gun 3 | . . 3 Energy Cannon . | . . . Ballistic Gun 2 | 2 . . Ballistic Cannon . | . . . Launcher 1 | . 1 . Special Weapon . | . . . Impact Weapon . | . . . Slashing Weapon . | . . . Piercing Weapon . | . . . Special Melee Weapon . | . . . Unidentified Prototypes 1 | . . 1 Parts Lost 12 | . 4 8 Power 2 | . 1 1 Propulsion 5 | . 1 4 Utility 1 | . 1 . Weapon 4 | . 1 3 Highest Loss Streak 5 | . 3 5 To Critical Strikes 1 | . . 1 Average Backups 3 | . 3 3 Power . | . . . Propulsion . | . . . Utility 2 | . 2 2 Weapon . | . . . Tool/Special . | . . . Unused Backups 1 | . . 1 Power . | . . . Propulsion . | . . . Utility 1 | . . 1 Weapon . | . . . Tool/Special . | . . . Average Slot Usage (%) 89 | . 89 89 Engine 9 | . 8 10 Core 2 | . 4 . Leg 17 | . 25 9 Flight 1 | . . 3 Device 7 | . 2 11 Storage 13 | . 16 11 Processor 5 | . . 10 Protection 8 | . 5 11 Energy Gun 8 | . . 16 Ballistic Gun 13 | . 24 2 Launcher 1 | . . 1 Peak Build Rating 16 | 6 9 16 Average Rating 9 | 4 6 12 On Entrance 4 | . 6 7 Avg Prop Armor Cover (%) . | . . . Naked Turns . | . . . Heaviest Build 53 | 11 50 53 Greatest Support 20 | 20 20 20 Greatest Overweight (x) 17 | . 4 17 Average Overweight (x) 1 | . . 5 Largest Inventory Capacity 20 | 8 20 20 Average Capacity 15 | 6 11 20 Most Carried 7 | 2 7 4 Average Carried 3 | . 3 3 Final Capacity 20 | 8 20 20 Final Carried 4 | . 4 3 Class Distribution -------------------- 94% | Mutant 5% | Scavenger-Mutant Dominant Class ---------------- Mutant | -10/Materials Mutant | -9/Materials Resources | -11 -10 -9 ----------- Run | Yrd Mat Mat Matter Collected 582 | 264 181 137 Remotely . | . . . Salvage Created 936 | 96 298 542 Parts 44 | 2 23 19 Haulers Intercepted 1 | . . 1 Recyclers Shooed . | . . . Parts Field Recycled . | . . . Retrieved Matter . | . . . Parts Self-Destructed . | . . . Prevented . | . . . Parts Restored . | . . . Kills | -11 -10 -9 ------- Run | Yrd Mat Mat Combat Hostiles Destroyed 13 | . 6 7 Guns 12 | . 6 6 AOE 1 | . . 1 Classes Destroyed 6 | 1 3 2 Worker 3 | . 1 2 Tunneler 1 | . 1 . Hauler 1 | . . 1 Recycler 2 | 1 . 1 Watcher 2 | . . 2 Grunt 13 | . 6 7 Best Kill Streak 4 | 1 2 4 Combat Bots Only 2 | . 2 2 Max Kills in Single Turn 1 | 1 1 1 Gunslinging . | . . . Exploded 1 | . . 1 Melee . | . . . Uniques/NPCs Destroyed . | . . . Combat | -11 -10 -9 -------- Run | Yrd Mat Mat Hostile Shots Fired 142 | . 65 77 Missed 33 | . 13 20 Hits 109 | . 52 57 Projectile 109 | . 52 57 Critical Strikes 3 | . . 3 Damage Taken 1419 | . 611 808 Core 255 | . 93 162 Absorbed by Shields . | . . . Redirected to Shielding 37 | . 4 33 Core Remaining (%) 81 | 100 62 . Volleys Fired 76 | 1 37 38 Largest 2 | 2 2 2 Hottest 126 | 40 40 126 Shots Fired 126 | 2 61 63 Gun 125 | 2 61 62 Cannon . | . . . Launcher 1 | . . 1 Special . | . . . Kinetic 72 | 2 61 9 Thermal 46 | . . 46 Explosive 1 | . . 1 Electromagnetic 7 | . . 7 Robot Hit Streak 5 | 2 5 5 Robot Miss Streak 6 | . 3 6 Penetration Max . | . . . Secondary Targets 2 | . 1 1 Max Gunslinging Chain 1 | . 1 1 Shots Hit Robots 76 | 2 39 35 Core Hits 34 | 2 16 16 Critical Kills . | . . . Critical Parts Destroyed 1 | . 1 . Critical Strikes 3 | . 1 2 Burn 2 | . . 2 Destroy 1 | . 1 . Melee Attacks . | . . . Impact . | . . . Slashing . | . . . Piercing . | . . . Sneak Attacks . | . . . Combat Hostiles . | . . . Follow-up Attacks . | . . . Damage Inflicted 1062 | 21 425 616 Guns 1023 | 21 425 577 Cannons . | . . . Explosions 39 | . . 39 Melee . | . . . Ramming . | . . . Kinetic 464 | 21 425 18 Thermal 494 | . . 494 Explosive 39 | . . 39 Electromagnetic 65 | . . 65 Impact . | . . . Slashing . | . . . Piercing . | . . . Highest Corruption . | . . . Average Corruption . | . . . Corruption Purged . | . . . Corruption Blocked . | . . . Overload Shots . | . . . Overflow Damage . | . . . Projectiles . | . . . Explosions . | . . . Melee . | . . . Knockbacks . | . . . Impact . | . . . Kinetic . | . . . Secondary . | . . . Self-Inflicted Damage . | . . . Shots . | . . . Rammed . | . . . Targets Rammed . | . . . Kicked . | . . . Crushed . | . . . Highest Temperature 264 | . 20 264 Average Temperature 67 | . 7 86 Received Heat Transfer 726 | . 345 381 Effects 1 | . . 1 Interference 1 | . . 1 Siege Activations . | . . . Martial Activations . | . . . Shielding Activations . | . . . Robots Disrupted . | . . . Combat Hostiles . | . . . Robots Corrupted . | . . . Combat Hostiles . | . . . Parts Fried . | . . . Impact Corruptions . | . . . Robots Melted . | . . . Combat Hostiles . | . . . Parts Melted . | . . . Heat Transferred 1221 | . . 1221 Parts Sabotaged . | . . . Parts Stolen . | . . . Parts Stripped . | . . . Power Chain Reactions . | . . . Alert | -11 -10 -9 ------- Run | Yrd Mat Mat Maximum Alert Level . | . . . Low Security (%) 100 | 100 100 100 Level 1 . | . . . Level 2 . | . . . Level 3 . | . . . Level 4 . | . . . Level 5 . | . . . High Security . | . . . Max Security . | . . . Peak Influence 69 | . 40 69 Initial . | . . . Average 12 | . 8 17 Influence Increases 380 | 5 160 215 Destroy 0b10 Robot/C 260 | . 120 140 Destroy 0b10 Robot/NC 45 | 5 10 30 Destroy Leader 66 | . 30 36 Destroy Structure 9 | . . 9 Influence Decreases 380 | 5 160 215 Time Decay 330 | 5 140 185 Lost Part 50 | . 20 30 Squads Dispatched 2 | . 1 1 Investigation 1 | . 1 . Extermination . | . . . Reinforcement 1 | . . 1 Assault . | . . . Garrison . | . . . Intercept . | . . . Searches Triggered . | . . . Construction Impeded . | . . . Haulers Reinforced . | . . . Active Scanning Responses . | . . . Cargo Convoy Interrupts . | . . . Stealth | -11 -10 -9 --------- Run | Yrd Mat Mat Distress Signals 1 | . . 1 Communications Jammed . | . . . Distress Signals . | . . . Times Spotted 29 | . 8 21 Peak Tracking Total 5 | . 2 5 Tactical Retreats . | . . . Traps | -11 -10 -9 ------- Run | Yrd Mat Mat Traps Triggered 1 | . 1 . Indirectly . | . . . Trap Hack Attempts . | . . . Triggered . | . . . Disarmed . | . . . Reprogrammed . | . . . Reused . | . . . Traps Extracted . | . . . Installed . | . . . Triggered . | . . . Machines | -11 -10 -9 ---------- Run | Yrd Mat Mat Machines Disabled . | . . . Max in Single Turn . | . . . Machines Repaired . | . . . Machines Dismantled . | . . . Machines Sabotaged . | . . . Overloaded Fab Kills . | . . . Hacking | -11 -10 -9 --------- Run | Yrd Mat Mat Machines Accessed 2 | . 2 . Terminals 1 | . 1 . Fabricators . | . . . Repair Stations . | . . . Recycling Units 1 | . 1 . Scanalyzers . | . . . Garrison Access . | . . . Total Hacks 7 | . 7 . Successful 4 | . 4 . Failed 3 | . 3 . Catastrophic 1 | . 1 . Database Lockouts . | . . . Manual . | . . . Terminals 3 | . 3 . Fabricators . | . . . Repair Stations . | . . . Recycling Units 4 | . 4 . Scanalyzers . | . . . Garrison Access . | . . . Terminal Hacks 1 | . 1 . Emergency Access Points 1 | . 1 . Fabricator Hacks . | . . . Repair Station Hacks . | . . . Recycling Unit Hacks 3 | . 3 . Process 1 | . 1 . Report Inventory 1 | . 1 . Retrieve Matter 1 | . 1 . Scanalyzer . | . . . Garrison Access Hacks . | . . . Unauthorized Hacks . | . . . Terminals . | . . . Fabricators . | . . . Repair Stations . | . . . Recycling Units . | . . . Scanalyzers . | . . . Garrison Access . | . . . Data Cores Recovered . | . . . Used . | . . . Hacking Detections 2 | . 2 . Full Trace Events 1 | . 1 . Feedback Events . | . . . Feedback Blocked . | . . . Robot Schematics Acquired . | . . . Robots Built . | . . . Authchips . | . . . Time . | . . . Total Robot Build Rating . | . . . Part Schematics Acquired . | . . . Parts Built . | . . . Authchips . | . . . Time . | . . . Total Part Build Rating . | . . . Part Studies Acquired . | . . . Parts Repaired . | . . . Time . | . . . Parts Recycled . | . . . Recycled Matter 227 | . 227 . Retrieved Matter 243 | . 243 . Retrieved Components . | . . . Parts Scanalyzed . | . . . Part Schematics Acquired . | . . . Parts Damaged . | . . . Bothacking | -11 -10 -9 ------------ Run | Yrd Mat Mat Used RIF Installer . | . . . Robots Hacked . | . . . Non-combat . | . . . Combat . | . . . Robot Hacks Applied . | . . . Relay Couplers Released . | . . . Fabnet Peak Effective % . | . . . Robots Rewired . | . . . Allies Hacked . | . . . Hacks Repelled . | . . . Allies | -11 -10 -9 -------- Run | Yrd Mat Mat Total Allies . | . . . Largest Group . | . . . Highest-Rated Group . | . . . Highest-Rated Ally . | . . . Total Orders . | . . . Ally Attacks . | . . . Total Damage . | . . . Kills . | . . . Allies Corrupted . | . . . Allies Melted . | . . . Intel | -11 -10 -9 ------- Run | Yrd Mat Mat Active Infowar (turns) 804 | . 122 682 Optics 633 | . . 633 Sensors 122 | . 122 . Structural 682 | . . 682 Robot Analysis Total . | . . . Derelict Logs Recovered . | . . . Drone Launches . | . . . Drone Recoveries . | . . . Exploration | -11 -10 -9 ------------- Run | Yrd Mat Mat Turns Passed 1387 | 67 637 683 Spaces Moved 485 | 50 306 129 Core 20 | 8 . 12 Treads . | . . . Legs 437 | 42 306 89 Wheels . | . . . Hover 6 | . . 6 Flight 22 | . . 22 Fastest Speed 50 | 50 120 260 Average Speed 230 | 108 163 436 Slowest Speed 900 | 120 400 900 Overloaded Moves . | . . . Propulsion Burnouts . | . . . Robots Hopped . | . . . Potential Cave-ins . | . . . Cave-ins Triggered . | . . . Exploration Rate (%) 21 | 4 45 14 Regions Visited 2 Branch Regions . Pre-discovered Areas . | . . . Known Exits Taken . | . . . Unknown Exits Taken 2 | 1 1 . Scrap Searched . | . . . Spaces Dug . | . . . Terrain Destroyed 8 | . . 8 Melee . | . . . Projectile . | . . . AOE 8 | . . 8 Terrain Rammed . | . . . Walls Destroyed . | . . . Machines Disabled . | . . . Actions | -11 -10 -9 --------- Run | Yrd Mat Mat Total 631 | 59 388 184 Wait 25 | . 20 5 Move 483 | 49 305 129 Hop . | . . . Pick Up 13 | 3 8 2 Fast Attach 7 | 3 2 2 Attach 9 | 3 3 3 Detach . | . . . Swap 13 | . 8 5 Drop 5 | . 5 . Fire 76 | 1 37 38 Melee . | . . . Ram . | . . . Kick . | . . . Crush . | . . . Escape Stasis . | . . . Rewire . | . . . Trap . | . . . Miscellaneous . | . . . Route ------- -11/Scrapyard -10/Materials (discovered 3 exits: [*Mat] / [*Min] / [*Sub]) -9/Materials (discovered 2 exits: [*Sto x2]) History --------- Turn | Location | Event 44 | -11/Scrapyard | Discovered new exit (range 14) 68 | -11/Scrapyard | Entered Materials 232 | -10/Materials | Discovered new exit (range 7) 273 | -10/Materials | Discovered new exit (range 8) 304 | -10/Materials | Build established: Mutant 329 | -10/Materials | Discovered new exit (range 9) 607 | -10/Materials | Lost 3 parts (1n1u1w) 705 | -10/Materials | Entered another Materials area 705 | -9/Materials | Evolved 2 slots: Utility x2 707 | -9/Materials | Discovered new exit (range 15) 1223 | -9/Materials | Discovered new exit (range 15) 1388 | -9/Materials | Self-destructed Last Messages --------------- Acquired 10 matter. K-01 Serf collects debris. R-06 Scavenger collects Hover Unit. R-06 Scavenger destroyed. K-01 Serf collects debris. K-01 Serf suffers critical hit (Burn). K-01 Serf collects debris. R-06 Scavenger collects Lrg. Matter Pod. K-01 Serf collects debris. R-06 Scavenger collects Com. Wheel. Acquired Hover Unit. R-06 Scavenger collects Lgt. Ion Engine. R-06 Scavenger collects Sml. Storage Unit. Acquired Hover Unit. Field Laser destroyed. Hover Unit destroyed. Critical hit (Burn: +37). Critical hit (Destroy). Ion Engine destroyed. Field Laser destroyed. Map ----- +----------------------------------------------------+ | ?????????????????????????????????????????????????? | | ?????????????????????????????????????????????????? | | ?????????????????????????????????????????????????? | | ??????????????????????????????? ?????????????????? | | ??????????????????????????????? "????????????????? | | ??????????????????????????????? "????????????????? | | ???????????????????????????? ?????????????? | | ????????????????????????????###+####?????????????? | | ????????????????????????????# ##?????????????? | | ????????????????????????????? ?????????????? | | ????????????????????????????? ??????????????? | | ????????????????????????????? ???????????????? | | ????????????????????????????# #??????????????? | | ????????????????????????????## ##??????????????? | | ????????????????????????????## ##??????????????? | | ???????????????????? ######### ##??????????????? | | ???????????????????? ######### ##??????????????? | | ???????????????????? # # ##??????????????? | | ???????????????????? # """ # ##??????????????? | | ???????????????????? # """ # ##??????????????? | | ???????????????????? # """ !!/= ##??????????????? | | ???????????????????? # %! # ###?????????????? | | ??????????????? ####+#### #######?????????? | | ???????????????########## ### ##### ##???? | | ???????????????## # Y Y ##???? | | ???????????????## " + @ T < ##???? | | ???????????????## T # ! Y ##???? | | ???????????????## " ###### ##### ##???? | | ????????? ?? + ##################+####???? | | ?????????## # ############ ??? ???? | | ?????????## #####+########???????????????????? | | ?????????## ##???????????????????? | | ?????????## ##???????????????????? | | ????? ##???????????????????? | | ?????################+### ##???## ????? | | ?????############ ## ####?############????? | | ?????????????????????? ## ####### ##????? | | ?????????????????????? ## ####### """ ##????? | | ?????????????????????? ## ![### """ ##????? | | ?????????????????????? ## ![### """ ##????? | | ?????????????????????? ## %%!!### ##????? | | ??????????????????????### !!!### """ ##????? | | ??????????????????????### !!### """ ##????? | | ??????????????????????### !!### """ ##????? | | ??????????????????????### ####### ##????? | | ??????????????????????## ##########+#####????? | | ??????????????????????## ##????? | | ??????????????????????## < ##????? | | ??????????????????????## ###???? | | ??????????????????????## ##########+######???? | +----------------------------------------------------+ Best States ------------- Heat Dissipation 42 Energy Generation 14 Energy Capacity 250 Matter Stores 350 Matter Capacity 500 Sight Range 18 Robot Scan Range 14 Terrain Scan Density 10 Core Shielding 20 Evasion (%) 55 Item Schematics ----------------- None Robot Schematics ------------------ None Fabricated ------------ Nothing Repaired ---------- Nothing Studied --------- None Alien Tech Used ----------------- None Achievements -------------- None Challenges ------------ None Game ------ Seed ConceptGatlingRocket Manual? 0 Play Time 00:17:49 Cumulative 6.3 hours Start 2025.12.18 @ 15:38:47 End 2025.12.18 @ 15:52:45 Sessions 1 Manual Loads 0 Difficulty Rogue Special Mode None Game No. 9 Rogue 8 Adventurer 1 Explorer 0 Win Type - Total 0 Types 0/0/0/0/0/0/0/0/0/0 Lore% 3 Gallery% 9 Achievement% 9 Wizard Run 0 Options --------- Layout 0 ASCII 0 Keyboard 1 Movement Numpad Keybinds 0 Fullscreen 2 Font 24/Terminus Map View 76x50 Zoom Use 0% Tactical HUD 0 Map Filters NONE Filters NONE Steam 1 RUN: 7234070c-10e1-4892-9fe7-a6d4dc8390df